fUST/lending_fUST_20250112
["ID","MTS","AMOUNT","RATE_DAILY","PERIOD"]
[348637294,1736694632677,-500.0,0.00019178,2]
[348637295,1736694632687,-500.0,0.00019178,2]
[348637296,1736694632696,-500.0,0.00019178,2]
[348637297,1736694632705,-500.0,0.00019178,2]
[348637298,1736694632715,-500.0,0.00019178,2]
[348637299,1736694632724,-500.0,0.00019178,2]
[348637300,1736694632733,-500.0,0.00019178,2]
[348637301,1736694632744,-500.0,0.00019178,2]
[348637302,1736694632754,-500.0,0.00019178,2]
[348637303,1736694632763,-500.0,0.00019178,2]
[348637304,1736694632773,-564.20834067,0.00019178,2]
[348637305,1736694632782,-500.0,0.00019178,2]
[348637306,1736694632792,-500.67533674,0.00019178,2]
[348637307,1736694632803,-500.0,0.00019178,2]
[348637308,1736694632812,-500.0,0.00019178,2]
[348637309,1736694632822,-500.0,0.00019178,2]
[348637310,1736694632831,-500.0,0.00019178,2]
[348637311,1736694632841,-170.55145973,0.00019178,2]
[348637312,1736694632852,-500.0,0.00019178,2]
[348637313,1736694632861,-500.0,0.00019178,2]
[348637314,1736694632871,-500.0,0.00019178,2]
[348637315,1736694632881,-438.26659971,0.00019178,2]
[348637316,1736694632891,-500.0,0.00019178,2]
[348637317,1736694632900,-500.0,0.00019178,2]
[348637318,1736694632910,-500.0,0.00019178,2]
[348637319,1736694632920,-500.0,0.00019178,2]
[348637320,1736694632930,-500.0,0.00019178,2]
[348637321,1736694632939,-500.0,0.00019178,2]
[348637322,1736694632949,-1000.0,0.00019178,2]
[348637323,1736694632959,-500.0,0.00019178,2]
[348637324,1736694632968,-500.0,0.00019178,2]
[348637325,1736694632977,-500.0,0.00019178,2]
[348637326,1736694632987,-500.0,0.00019178,2]
[348637327,1736694632997,-500.0,0.00019178,2]
[348637328,1736694633007,-500.0,0.00019178,2]
[348637329,1736694633016,-500.0,0.00019178,2]
[348637330,1736694633026,-500.0,0.00019178,2]
[348637331,1736694633036,-500.0,0.00019178,2]
[348637332,1736694633046,-500.0,0.00019178,2]
[348637333,1736694633056,-500.0,0.00019178,2]
[348637334,1736694633068,-187.4942968,0.00019178,2]
[348637335,1736694633078,-500.0,0.00019178,2]
[348637336,1736694633088,-500.0,0.00019178,2]
[348637337,1736694633097,-500.0,0.00019178,2]
[348637338,1736694633107,-500.0,0.00019178,2]
[348637339,1736694633117,-500.0,0.00019178,2]
[348637340,1736694633127,-545.7653291,0.00019178,2]
[348637341,1736694633137,-500.0,0.00019178,2]
[348637342,1736694633147,-500.0,0.00019178,2]
[348637343,1736694633157,-500.0,0.00019178,2]
[348637344,1736694633167,-500.96620685,0.00019178,2]
[348637345,1736694633178,-500.0,0.00019178,2]
[348637346,1736694633188,-500.0,0.00019178,2]
[348637347,1736694633198,-500.0,0.00019178,2]
[348637348,1736694633208,-502.47,0.00019178,2]
[348637349,1736694633218,-500.0,0.00019178,2]
[348637350,1736694633229,-500.0,0.00019178,2]
[348637351,1736694633239,-500.0,0.00019178,2]
[348637352,1736694633250,-500.0,0.00019178,2]
[348637353,1736694633260,-500.0,0.00019178,2]
[348637354,1736694633269,-500.0,0.00019178,2]
[348637355,1736694633279,-500.0,0.00019178,2]
[348637356,1736694633289,-449.89,0.00019178,2]
[348637357,1736694633299,-500.0,0.00019178,2]
[348637358,1736694633308,-500.0,0.00019178,2]
[348637359,1736694633318,-500.0,0.00019178,2]
[348637360,1736694633329,-500.0,0.00019178,2]
[348637361,1736694633339,-501.99134739,0.00019178,2]
[348637362,1736694633348,-500.0,0.00019178,2]
[348637363,1736694633358,-500.0,0.00019178,2]
[348637364,1736694633368,-608.16006339,0.00019178,2]
[348637365,1736694633378,-423.14845562,0.00019178,2]
[348637366,1736694633387,-500.87094482,0.00019178,2]
[348637367,1736694633397,-500.0,0.00019178,2]
[348637368,1736694633406,-510.85717758,0.00019178,2]
[348637369,1736694633416,-500.0,0.00019178,2]
[348637370,1736694633425,-500.0,0.00019178,2]
[348637371,1736694633435,-505.89393201,0.00019178,2]
[348637372,1736694633444,-500.0,0.00019178,2]
[348637373,1736694633454,-500.0,0.00019178,2]
[348637374,1736694633464,-500.0,0.00019178,2]
[348637375,1736694633473,-500.9597056,0.00019178,2]
[348637376,1736694633483,-500.0,0.00019178,2]
[348637377,1736694633493,-500.0,0.00019178,2]
[348637378,1736694633503,-213.15620792,0.00019178,2]
[348637379,1736694633513,-500.0,0.00019178,2]
[348637380,1736694633522,-246.45058543,0.00019178,2]
[348637381,1736694633531,-500.0,0.00019178,2]
[348637382,1736694633541,-500.0,0.00019178,2]
[348637383,1736694633550,-519.28659836,0.00019178,2]
[348637384,1736694633560,-649.66,0.00019178,2]
[348637385,1736694633570,-564.66738179,0.00019178,2]
[348637386,1736694633580,-500.0,0.00019178,2]
[348637387,1736694633590,-500.0,0.00019178,2]
[348637388,1736694633599,-389.37075348,0.00019178,2]
[348637389,1736694633609,-500.0,0.00019178,2]
[348637390,1736694633618,-500.0,0.00019178,2]
[348637391,1736694633627,-500.0,0.00019178,2]
[348637392,1736694633637,-500.0,0.00019178,2]
[348637393,1736694633647,-500.0,0.00019178,2]
[348637394,1736694633656,-500.0,0.00019178,2]
[348637395,1736694633665,-500.99369359,0.00019178,2]
[348637396,1736694633674,-500.0,0.00019178,2]
[348637397,1736694633683,-500.0,0.00019178,2]
[348637398,1736694633692,-634.17691208,0.00019178,2]
[348637399,1736694633702,-690.24,0.00019178,2]
[348637400,1736694633711,-504.04161417,0.00019178,2]
[348637401,1736694633721,-509.75343244,0.00019178,2]
[348637402,1736694633730,-500.0,0.00019178,2]
[348637403,1736694633739,-500.0,0.00019178,2]
[348637404,1736694633748,-500.0,0.00019178,2]
[348637405,1736694633757,-500.0,0.00019178,2]
[348637406,1736694633767,-500.0,0.00019178,2]
[348637407,1736694633776,-500.0,0.00019178,2]
[348637408,1736694633786,-501.13265787,0.00019178,2]
[348637409,1736694633796,-500.0,0.00019178,2]
[348637410,1736694633805,-500.0,0.00019178,2]
[348637411,1736694633814,-200.0,0.00019178,2]
[348637412,1736694633823,-500.0,0.00019178,2]
[348637413,1736694633833,-500.0,0.00019178,2]
[348637414,1736694633843,-500.0,0.00019178,2]
[348637415,1736694633853,-500.0,0.00019178,2]
[348637416,1736694633862,-500.0,0.00019178,2]
[348637417,1736694633872,-675.96,0.00019178,2]
[348637418,1736694633881,-500.0,0.00019178,2]
[348637419,1736694633891,-500.0,0.00019178,2]
[348637420,1736694633900,-500.0,0.00019178,2]
[348637421,1736694633910,-500.0,0.00019178,2]
[348637422,1736694633919,-502.02167406,0.00019178,2]
[348637423,1736694633928,-500.0,0.00019178,2]
[348637424,1736694633939,-500.0,0.00019178,2]
[348637425,1736694633948,-500.0,0.00019178,2]
[348637426,1736694633957,-500.0,0.00019178,2]
[348637427,1736694633967,-500.0,0.00019178,2]
[348637428,1736694633977,-500.0,0.00019178,2]
[348637429,1736694633986,-3111.43,0.00019178,2]
[348637430,1736694633996,-528.22,0.00019178,2]
[348637431,1736694634005,-273.28427833,0.00019178,2]
[348637432,1736694634014,-500.0,0.00019178,2]
[348637433,1736694634023,-500.0,0.00019178,2]
[348637434,1736694634032,-500.0,0.00019178,2]
[348637435,1736694634041,-602.41196835,0.00019178,2]
[348637436,1736694634051,-500.0,0.00019178,2]
[348637437,1736694634061,-500.0,0.00019178,2]
[348637438,1736694634070,-500.0,0.00019178,2]
[348637439,1736694634080,-500.0,0.00019178,2]
[348637440,1736694634089,-500.0,0.00019178,2]
[348637441,1736694634100,-500.0,0.00019178,2]
[348637442,1736694634109,-500.0,0.00019178,2]
[348637443,1736694634118,-500.0,0.00019178,2]
[348637444,1736694634128,-500.0,0.00019178,2]
[348637445,1736694634137,-500.0,0.00019178,2]
[348637446,1736694634147,-496.27072835,0.00019178,2]
[348637447,1736694634157,-500.0,0.00019178,2]
[348637448,1736694634166,-449.61573678,0.00019178,2]
[348637449,1736694634175,-500.0,0.00019178,2]
[348637450,1736694634309,-558.9,0.00019178,2]
[348637451,1736694634319,-500.0,0.00019178,2]
[348637452,1736694634329,-500.0,0.00019178,2]
[348637453,1736694634339,-500.0,0.00019178,2]
[348637454,1736694634348,-500.0,0.00019178,2]
[348637455,1736694634358,-512.78567916,0.00019178,2]
[348637456,1736694634367,-500.0,0.00019178,2]
[348637457,1736694634377,-500.0,0.00019178,2]
[348637458,1736694634387,-500.0,0.00019178,2]
[348637459,1736694634396,-500.0,0.00019178,2]
[348637460,1736694634410,-500.94719348,0.00019178,2]
[348637461,1736694634419,-500.0,0.00019178,2]
[348637462,1736694634428,-500.0,0.00019178,2]
[348637463,1736694634438,-608.4,0.00019178,2]
[348637464,1736694634449,-500.0,0.00019178,2]
[348637465,1736694634459,-500.0,0.00019178,2]
[348637466,1736694634468,-500.87068531,0.00019178,2]
[348637467,1736694634477,-500.0,0.00019178,2]
[348637468,1736694634489,-302.05843862,0.00019178,2]
[348637469,1736694634498,-500.0,0.00019178,2]
[348637470,1736694634507,-500.0,0.00019178,2]
[348637471,1736694634517,-952.58,0.00019178,2]
[348637472,1736694634526,-500.0,0.00019178,2]
[348637473,1736694634536,-500.0,0.00019178,2]
[348637474,1736694634546,-500.0,0.00019178,2]
[348637475,1736694634555,-500.52315074,0.00019178,2]
[348637476,1736694634565,-500.0,0.00019178,2]
[348637477,1736694634575,-1618.85,0.00019178,2]
[348637478,1736694634585,-500.0,0.00019178,2]
[348637479,1736694634594,-500.0,0.00019178,2]
[348637480,1736694634604,-393.70968632,0.00019178,2]
[348637481,1736694634614,-500.0,0.00019178,2]
[348637482,1736694634624,-500.0,0.00019178,2]
[348637483,1736694634633,-163.47477116,0.00019178,2]
[348637484,1736694634643,-523.79,0.00019178,2]
[348637485,1736694634652,-500.0,0.00019178,2]
[348637486,1736694634662,-217.56011933,0.00019178,2]
[348637487,1736694634671,-1015.42,0.00019178,2]
[348637488,1736694634681,-500.0,0.00019178,2]
[348637489,1736694634691,-500.0,0.00019178,2]
[348637490,1736694634700,-518.93435476,0.00019178,2]
[348637491,1736694634710,-500.0,0.00019178,2]
[348637492,1736694634720,-1062.01,0.00019178,2]
[348637493,1736694634729,-500.0,0.00019178,2]
[348637494,1736694634739,-500.0,0.00019178,2]
[348637495,1736694634748,-972.67,0.00019178,2]
[348637496,1736694634758,-21772.27,0.00019178,2]
[348637497,1736694634768,-798.72,0.00019178,2]
[348637498,1736694634777,-500.0,0.00019178,2]
[348637499,1736694634787,-500.0,0.00019178,2]
[348637500,1736694634796,-500.0,0.00019178,2]
[348637501,1736694634806,-500.0,0.00019178,2]
[348637502,1736694634815,-3829.93,0.00019178,2]
[348637503,1736694634824,-498.95097685,0.00019178,2]
[348637504,1736694634834,-500.0,0.00019178,2]
[348637505,1736694634842,-500.0,0.00019178,2]
[348637506,1736694634851,-500.0,0.00019178,2]
[348637507,1736694634861,-500.0,0.00019178,2]
[348637508,1736694634870,-944.62,0.00019178,2]
[348637509,1736694634879,-500.0,0.00019178,2]
[348637510,1736694634889,-500.0,0.00019178,2]
[348637511,1736694634899,-2910.66,0.00019178,2]
[348637512,1736694634908,-500.0,0.00019178,2]
[348637513,1736694634918,-500.0,0.00019178,2]
[348637514,1736694634927,-500.0,0.00019178,2]
[348637515,1736694634936,-616.76,0.00019178,2]
[348637516,1736694634946,-500.0,0.00019178,2]
[348637517,1736694634955,-500.0,0.00019178,2]
[348637518,1736694634965,-500.0,0.00019178,2]
[348637519,1736694634974,-500.0,0.00019178,2]
[348637520,1736694634984,-500.0,0.00019178,2]
[348637521,1736694634993,-646.16,0.00019178,2]
[348637522,1736694635003,-500.0,0.00019178,2]
[348637523,1736694635012,-500.0,0.00019178,2]
[348637524,1736694635022,-500.0,0.00019178,2]
[348637525,1736694635032,-500.0,0.00019178,2]
[348637526,1736694635042,-500.0,0.00019178,2]
[348637527,1736694635052,-500.0,0.00019178,2]
[348637528,1736694635062,-500.0,0.00019178,2]
[348637529,1736694635072,-843.99,0.00019178,2]
[348637530,1736694635081,-500.0,0.00019178,2]
[348637531,1736694635091,-500.0,0.00019178,2]
[348637532,1736694635100,-500.0,0.00019178,2]
[348637533,1736694635110,-503.82382776,0.00019178,2]
[348637534,1736694635119,-500.0,0.00019178,2]
[348637535,1736694635129,-500.0,0.00019178,2]
[348637536,1736694635140,-500.0,0.00019178,2]
[348637537,1736694635150,-500.0,0.00019178,2]
[348637538,1736694635161,-500.0,0.00019178,2]
[348637539,1736694635171,-500.0,0.00019178,2]
[348637540,1736694635181,-500.0,0.00019178,2]
[348637541,1736694635191,-642.85,0.00019178,2]
[348637542,1736694635200,-594.67,0.00019178,2]
[348637543,1736694635211,-500.0,0.00019178,2]
[348637544,1736694635221,-500.0,0.00019178,2]
[348637545,1736694635230,-500.0,0.00019178,2]
[348637546,1736694635239,-1736.35,0.00019178,2]
[348637547,1736694635248,-213.18689949,0.00019178,2]
[348637548,1736694635258,-500.0,0.00019178,2]
[348637549,1736694635267,-505.86757736,0.00019178,2]
[348637550,1736694635277,-500.0,0.00019178,2]
[348637551,1736694635286,-500.0,0.00019178,2]
[348637552,1736694635295,-1120.76,0.00019178,2]
[348637553,1736694635304,-500.0,0.00019178,2]
[348637554,1736694635313,-500.0,0.00019178,2]
[348637555,1736694635323,-500.0,0.00019178,2]
[348637556,1736694635332,-2029.74,0.00019178,2]
[348637557,1736694635341,-895.61,0.00019178,2]
[348637558,1736694635350,-1808.26,0.00019178,2]
[348637559,1736694635359,-500.0,0.00019178,2]
[348637560,1736694635369,-500.0,0.00019178,2]
[348637561,1736694635379,-500.0,0.00019178,2]
[348637562,1736694635388,-500.0,0.00019178,2]
[348637563,1736694635397,-835.56,0.00019178,2]
[348637564,1736694635406,-500.0,0.00019178,2]
[348637565,1736694635416,-501.42570542,0.00019178,2]
[348637566,1736694635425,-500.0,0.00019178,2]
[348637567,1736694635435,-500.0,0.00019178,2]
[348637568,1736694635444,-918.52,0.00019178,2]
[348637569,1736694635453,-796.32,0.00019178,2]
[348637570,1736694635462,-527.43,0.00019178,2]
[348637571,1736694635471,-582.05793864,0.00019178,2]
[348637572,1736694635480,-498.18164,0.00019178,2]
[348637573,1736694635490,-2043.26,0.00019178,2]
[348637574,1736694635499,-883.75,0.00019178,2]
[348637575,1736694635508,-500.0,0.00019178,2]
[348637576,1736694635517,-500.0,0.00019178,2]
[348637577,1736694635527,-500.0,0.00019178,2]
[348637578,1736694635536,-739.17,0.00019178,2]
[348637579,1736694635545,-500.0,0.00019178,2]
[348637580,1736694635554,-4441.72,0.00019178,2]
[348637581,1736694635563,-500.0,0.00019178,2]
[348637582,1736694635573,-500.0,0.00019178,2]
[348637583,1736694635583,-427.4922898,0.00019178,2]
[348637584,1736694635592,-420.0,0.00019295,2]
[348637585,1736694635602,-3000.0,0.00019352,2]
[348637586,1736694635612,-32651.72648478,0.00019352,2]
[348637587,1736694635622,-500.0,0.00019452,3]
[348637588,1736694635631,-500.0,0.00019452,3]
[348637589,1736694635640,-157.34,0.00019452,3]
[348637590,1736694635650,-500.0,0.00019452,3]
[348637591,1736694635659,-500.0,0.00019452,3]
[348637592,1736694635668,-500.0,0.00019452,3]
[348637593,1736694635677,-280.74328914,0.00019452,3]
[348637594,1736694635687,-500.0,0.00019452,3]
[348637595,1736694635696,-690.24,0.00019452,3]
[348637596,1736694635706,-500.0,0.00019452,3]
[348637597,1736694635715,-675.96,0.00019452,3]
[348637598,1736694635725,-3111.43,0.00019452,3]
[348637599,1736694635734,-528.22,0.00019452,3]
[348637600,1736694635743,-209.81826459,0.00019452,3]
[348637601,1736694635753,-558.9,0.00019452,3]
[348637602,1736694635763,-247.86289369,0.00019452,3]
[348637603,1736694635772,-555.39566717,0.00019452,3]
[348637604,1736694635782,-952.58,0.00019452,3]
[348637605,1736694635792,-500.0,0.00019452,3]
[348637606,1736694635802,-500.0,0.00019452,3]
[348637607,1736694635812,-1618.85,0.00019452,3]
[348637608,1736694635822,-500.0,0.00019452,3]
[348637609,1736694635832,-500.0,0.00019452,3]
[348637610,1736694635842,-500.0,0.00019452,3]
[348637611,1736694635852,-1015.42,0.00019452,3]
[348637612,1736694635861,-1062.01,0.00019452,3]
[348637613,1736694635870,-972.67,0.00019452,3]
[348637614,1736694635880,-21772.27,0.00019452,3]
[348637615,1736694635889,-798.72,0.00019452,3]
[348637616,1736694635898,-485.1617,0.00019452,3]
[348637617,1736694635908,-500.0,0.00019452,3]
[348637618,1736694635917,-3829.93,0.00019452,2]
[348637619,1736694635926,-500.0,0.00019452,3]
[348637620,1736694635936,-944.62,0.00019452,3]
[348637621,1736694635945,-500.0,0.00019452,3]
[348637622,1736694635955,-2910.66,0.00019452,3]
[348637623,1736694635964,-500.0,0.00019452,3]
[348637624,1736694635974,-616.76,0.00019452,3]
[348637625,1736694635983,-500.0,0.00019452,3]
[348637626,1736694635993,-646.16,0.00019452,3]
[348637627,1736694636003,-500.0,0.00019452,3]
[348637628,1736694636012,-500.0,0.00019452,3]
[348637629,1736694636021,-500.0,0.00019452,3]
[348637630,1736694636031,-843.99,0.00019452,3]
[348637631,1736694636041,-285.2384528,0.00019452,3]
[348637632,1736694636050,-500.0,0.00019452,3]
[348637633,1736694636061,-594.67,0.00019452,3]
[348637634,1736694636070,-500.0,0.00019452,3]
[348637635,1736694636080,-1736.35,0.00019452,3]
[348637636,1736694636090,-1120.76,0.00019452,3]
[348637637,1736694636100,-500.0,0.00019452,3]
[348637638,1736694636109,-500.0,0.00019452,3]
[348637639,1736694636119,-2029.74,0.00019452,3]
[348637640,1736694636129,-895.61,0.00019452,3]
[348637641,1736694636138,-1808.26,0.00019452,3]
[348637642,1736694636148,-500.0,0.00019452,3]
[348637643,1736694636158,-500.0,0.00019452,3]
[348637644,1736694636168,-500.0,0.00019452,3]
[348637645,1736694636178,-835.56,0.00019452,3]
[348637646,1736694636188,-500.0,0.00019452,3]
[348637647,1736694636197,-918.52,0.00019452,3]
[348637648,1736694636206,-796.32,0.00019452,3]
[348637649,1736694636216,-527.43,0.00019452,3]
[348637650,1736694636225,-2043.26,0.00019452,3]
[348637651,1736694636234,-883.75,0.00019452,3]
[348637652,1736694636243,-739.17,0.00019452,3]
[348637653,1736694636253,-500.0,0.00019452,3]
[348637654,1736694636262,-4441.72,0.00019452,3]
[348637655,1736694636271,-500.0,0.00019452,3]
[348637656,1736694636281,-168.867,0.0001947,2]
[348637657,1736694636290,-239.4073367,0.00019726,3]
[348637658,1736694636304,-500.0,0.00019726,3]
[348637659,1736694636313,-500.0,0.00019726,3]
[348637660,1736694636323,-500.0,0.00019726,3]
[348637661,1736694636332,-500.0,0.00019726,3]
[348637662,1736694636342,-367.32817236,0.00019726,3]
[348637663,1736694636450,-132.67182764,0.00019726,3]
[348637664,1736694636460,-690.24,0.00019726,3]
[348637665,1736694636471,-500.0,0.00019726,3]
[348637666,1736694636481,-675.96,0.00019726,3]
[348637667,1736694636491,-3111.43,0.00019726,3]
[348637668,1736694636500,-528.22,0.00019726,3]
[348637669,1736694636509,-558.9,0.00019726,3]
[348637670,1736694636519,-952.58,0.00019726,3]
[348637671,1736694636528,-500.0,0.00019726,3]
[348637672,1736694636538,-500.0,0.00019726,3]
[348637673,1736694636548,-1618.85,0.00019726,3]
[348637674,1736694636557,-500.0,0.00019726,3]
[348637675,1736694636567,-500.0,0.00019726,3]
[348637676,1736694636577,-500.0,0.00019726,3]
[348637677,1736694636586,-1015.42,0.00019726,3]
[348637678,1736694636595,-1062.01,0.00019726,3]
[348637679,1736694636604,-972.67,0.00019726,3]
[348637680,1736694636614,-21772.27,0.00019726,3]
[348637681,1736694636623,-798.72,0.00019726,3]
[348637682,1736694636632,-500.0,0.00019726,3]
[348637683,1736694636642,-3829.93,0.00019726,2]
[348637684,1736694636652,-500.0,0.00019726,3]
[348637685,1736694636661,-944.62,0.00019726,3]
[348637686,1736694636671,-500.0,0.00019726,3]
[348637687,1736694636680,-2910.66,0.00019726,3]
[348637688,1736694636691,-234.893369,0.00019726,3]
[348637689,1736694636700,-616.76,0.00019726,3]
[348637690,1736694636709,-500.0,0.00019726,3]
[348637691,1736694636719,-646.16,0.00019726,3]
[348637692,1736694636729,-500.0,0.00019726,3]
[348637693,1736694636737,-500.0,0.00019726,3]
[348637694,1736694636746,-500.0,0.00019726,3]
[348637695,1736694636755,-843.99,0.00019726,3]
[348637696,1736694636765,-500.0,0.00019726,3]
[348637697,1736694636775,-594.67,0.00019726,3]
[348637698,1736694636784,-500.0,0.00019726,3]
[348637699,1736694636794,-1736.35,0.00019726,3]
[348637700,1736694636803,-1120.76,0.00019726,3]
[348637701,1736694636813,-500.0,0.00019726,3]
[348637702,1736694636822,-500.0,0.00019726,3]
[348637703,1736694636832,-2029.74,0.00019726,3]
[348637704,1736694636841,-895.61,0.00019726,3]
[348637705,1736694636851,-1808.26,0.00019726,3]
[348637706,1736694636859,-500.0,0.00019726,3]
[348637707,1736694636967,-500.0,0.00019726,3]
[348637708,1736694636976,-500.0,0.00019726,3]
[348637709,1736694636986,-835.56,0.00019726,3]
[348637710,1736694636995,-500.0,0.00019726,3]
[348637711,1736694637005,-918.52,0.00019726,3]
[348637712,1736694637014,-796.32,0.00019726,3]
[348637713,1736694637024,-527.43,0.00019726,3]
[348637714,1736694637033,-2043.26,0.00019726,3]
[348637715,1736694637043,-883.75,0.00019726,3]
[348637716,1736694637052,-739.17,0.00019726,3]
[348637717,1736694637061,-500.0,0.00019726,3]
[348637718,1736694637071,-4441.72,0.00019726,3]
[348637719,1736694637081,-500.0,0.00019726,3]
[348637720,1736694637091,-237.9316884,0.00019799,2]
[348637721,1736694637100,-151.0,0.000198,2]
[348637722,1736694637110,-151.0,0.000198,2]
[348637723,1736694637119,-151.0,0.000199,2]
[348637724,1736694637129,-151.0,0.000199,2]
[348637725,1736694637139,-212.49251514,0.000199,2]
[348637726,1736694637149,-389.0,0.000199,2]
[348637727,1736694637159,-318.40861021,0.00019935,2]
[348637728,1736694637169,-158.0,0.00019941,2]
[348637729,1736694637178,-158.0,0.00019941,2]
[348637730,1736694637187,-160.68,0.00019941,2]
[348637731,1736694637196,-891.93711812,0.0002,5]
[348637732,1736694637205,-534.05536382,0.0002,5]
[348637733,1736694637215,-416015.97858318,0.0002,5]
[348637758,1736694637754,-78095.41116965,0.0002,5]
[348637761,1736694637766,-301.79,0.0002,5]
[348637763,1736694637779,-36477.70156439,0.0002,5]
[348637776,1736694637885,-379.03,0.0002,5]
[348637997,1736694640115,-5000.0,0.00018986,2]
[348637999,1736694640124,-19050.74,0.00019178,2]
[348638001,1736694640134,-3701.43,0.00019178,2]
[348638003,1736694640144,-19050.74,0.00019452,3]
[348638005,1736694640153,-19050.74,0.00019726,3]
[348638007,1736694640163,-369895.48408213,0.0002,5]
[348638276,1736694643060,-46.44688991,0.00019452,3]
[348638561,1736695111462,363.412644,0.00013973,2]
[348638573,1736695696701,6781.11492931,0.000125,2]
[348638574,1736695708062,269.94662303,0.00014114,2]
[348638575,1736695710121,275.81974135,0.0001,2]
[348638578,1736695719772,566.18245533,0.000149,2]
[348638579,1736695719799,1000.0,0.0001,2]
[348638701,1736695832344,-5000.0,0.00015524,2]
[348638703,1736695832354,-200.32648066,0.000156,2]
[348638705,1736695832365,-300.0,0.0001568,2]
[348638707,1736695832374,-27135.49763223,0.0001568,2]
[348638710,1736695832386,-41662.92190001,0.0001568,2]
[348638712,1736695832397,-109268.08076785,0.0001568,2]
[348638714,1736695832408,-20215.36938312,0.0001568,2]
[348638716,1736695832420,-455.8688184,0.0001568,2]
[348638720,1736695832446,-24413.4784988,0.0001568,2]
[348638722,1736695832458,-83.78299959,0.0001568,2]
[348638724,1736695832467,-1253.31050041,0.00015682,2]
[348639004,1736695838040,-781.65347772,0.00015682,2]
[348639006,1736695838053,-4036.50254458,0.00015682,2]
[348639008,1736695838065,-3349.99999999,0.00015682,2]
[348639010,1736695838079,-5029.71816,0.00015682,2]
[348639013,1736695838091,-5846.40807028,0.00015682,2]
[348639017,1736695838119,-542.05,0.00015682,2]
[348639234,1736695840224,-736.55332444,0.00015682,2]
[348639239,1736695840263,-671.77936835,0.00015682,2]
[348639245,1736695840303,-2652.02455423,0.00015682,2]
[348639247,1736695840313,-1643.25140042,0.0001588,2]
[348639249,1736695840323,-250.0,0.00016203,2]
[348639251,1736695840332,-235.78030432,0.0001663,2]
[348639253,1736695840341,-151.0,0.00016888,2]
[348639255,1736695840351,-187.02391682,0.00016891,2]
[348639257,1736695840362,-500.0,0.00016891,2]
[348639259,1736695840371,-266.44462808,0.00016891,2]
[348639261,1736695840380,-217.09595919,0.00016891,2]
[348639263,1736695840389,-500.0,0.00016891,2]
[348639265,1736695840400,-500.0,0.00016891,2]
[348639267,1736695840409,-500.0,0.00016891,2]
[348639269,1736695840418,-335.0,0.00016891,2]
[348639271,1736695840427,-500.0,0.00016891,2]
[348639273,1736695840437,-500.0,0.00016891,2]
[348639275,1736695840446,-500.0,0.00016891,2]
[348639278,1736695840456,-500.0,0.00016891,2]
[348639280,1736695840465,-500.0,0.00016891,2]
[348639282,1736695840475,-500.0,0.00016891,2]
[348639283,1736695840485,-500.0,0.00016891,2]
[348639285,1736695840494,-500.0,0.00016891,2]
[348639286,1736695840503,-500.0,0.00016891,2]
[348639287,1736695840512,-500.0,0.00016891,2]
[348639288,1736695840521,-500.0,0.00016891,2]